{"text_format":"1","workbook":"xlsx","n_sheets":1,"sheets":["Tabelle1"],"not_rendered":{"charts":0,"images":3,"macros":1,"external_links":0,"defined_names":1,"comments":1,"pivot_tables":0},"unopened":[],"bounds":{"document_bytes":16777216,"sheet_cells":100000,"rows_first":2000,"rows_last":500,"rows_between":2000,"halvings":0,"cell_chars":16384,"cell_head_chars":4096},"cells_cut":0,"cells_raw":0,"read":"whole","date_system":"1900"}

{"sheet":"Tabelle1","index":0,"n_rows":74,"n_cols":12,"rows_kept":74,"cut":false,"hidden":false,"merged":[[0,2,0,6],[55,2,55,4],[57,4,57,7],[62,1,62,5],[63,1,63,5],[62,6,62,7],[63,6,63,7],[59,1,60,2],[59,3,60,7],[6,1,6,7],[8,3,8,7],[9,3,9,7],[13,3,13,7],[11,3,12,7],[24,3,25,7],[38,2,38,4],[54,2,54,4],[43,4,43,7],[51,2,51,4],[52,2,52,4],[53,2,53,4],[1,4,1,7],[3,6,3,7],[45,1,46,2],[45,3,46,7],[49,2,49,4],[35,2,35,4],[18,3,19,7],[40,2,40,4],[41,2,41,4],[15,1,15,7],[29,1,29,7],[37,2,37,4],[39,2,39,4],[31,1,31,4],[32,1,32,4]]}
[null,null,"Drittbetreuungskosten\n(Dieses Formular ist der Steuererklärung beizulegen)",null,null,null,null,null,null,{"$f":"DATE(H1,1,1)","v":"1900-01-01"},{"$f":"RIGHT(H1,2)","v":""}]
[null,null,null,null,{"$f":"IF(H1=\"\",J32,\"\")","v":"Oben rechts das Steuerjahr erfassen."}]
[]
[null,null,null,null,"Vor- und Nachname:"]
[null,null,null,null,"PID-Nr.:"]
[]
[null,"Gesetzliche Grundlagen"]
[]
[null,"Direkte Bundessteuer",null,"- Art. 33 Abs. 1 des Bundesgesetzes über die direkte Bundessteuer"]
[null,null,null,"- Ziffer 8 des Kreisschreibens Nr. 30 der Eidg. Steuerverwaltung"]
[]
[null,"Kantonale Steuern",null,"- § 4 der Verordnung über die vorläufige Anpassung des kantonalen\n- Steuerrechts an das Steuerharmonisierungsgesetz"]
[]
[null,null,null,"- Merkblatt \"Voraussetzungen für den Abzug für Kinderdrittbetreuung\""]
[]
[null,"Grund der Betreuungsunfähigkeit der Eltern"]
[]
[null,"Steuerpflichtige Person 1",null,"Die Betreuungsunfähigkeit beträgt (z.B. Anzahl Tage/Wochen):"]
[]
[]
[]
[null,"Grund der Betreuungsunfähigkeit:"]
[]
[null,"Steuerpflichtige Person 2",null,"Die Betreuungsunfähigkeit beträgt (z.B. Anzahl Tage/Wochen):"]
[]
[]
[]
[null,"Grund der Betreuungsunfähigkeit:"]
[]
[null,"Drittbetreute Kinder"]
[]
[null,"Maximal zulässiger Abzug kantonale Steuer in CHF:",null,null,null,{"$f":"IF(H1=\"\",\"\",6000)","v":""},"pro Kind",null,null,"Oben rechts das Steuerjahr erfassen."]
[null,"Maximal zulässiger Abzug direkte Bundessteuer in CHF:",null,null,null,{"$f":"IF(H1=\"\",\"\",IF(H1>2022,25000,10100))","v":""},"pro Kind",null,null,"Bitte Geb-Datum des Kindes erfassen."]
[null,null,null,null,null,null,null,null,null,"Achtung Kosten nur abziehbar bis und mit 14. Geburtstag."]
[null,"Kind 1","Vor- und Nachname des Kindes:",null,null,null,"Geb-Datum:",{"$f":"CONCATENATE(\"Alter am 31.12.\",$K$1)","v":"Alter am 31.12."},null,"Kein Abzug mehr zulässig, da 14. Altersjahr vollendet."]
[null,null,null,null,null,null,null,{"$f":"IF($H$1=\"\",\"\",IF(G36=\"\",\"\",$H$1-J38))","v":""},null,"Total ja/nein","Kanton","Bund"]
[]
[null,"Kosten:","Zahlungsempfänger inkl. Adresse",null,null,"Rechnungs-betrag","davon Lebens-haltungskosten *","abziehbare Kosten",null,{"$f":"IF(G36=\"\",\"\",YEAR(G36))","v":""}]
[null,null,null,null,null,null,null,{"$f":"IF(F39=\"\",\"\",F39-G39)","v":""}]
[null,null,null,null,null,null,null,{"$f":"IF(F40=\"\",\"\",F40-G40)","v":""}]
[null,null,null,null,null,null,null,{"$f":"IF(F41=\"\",\"\",F41-G41)","v":""}]
[null,null,null,null,null,null,null,{"$f":"IF(F42=\"\",\"\",F42-G42)","v":""}]
[]
[null,"Entstandene Kosten in CHF:",null,{"$f":"IF(SUM(H39:H42)=0,\"\",SUM(H39:H42))","v":""},{"$f":"IF(D44=\"\",\"\",IF($H$1=\"\",$J$32,IF(G36=\"\",$J$33,IF(H36=14,$J$34,IF(H36>14,$J$35,\"\")))))","v":""},null,null,null,null,{"$f":"IF(H36<15,SUM(H39:H42),0)","v":0},{"$f":"IF(J44>$F$32,$F$32,J44)","v":0},{"$f":"IF(J44>$F$33,$F$33,J44)","v":0}]
[]
[null,"Weitere Informationen:"]
[]
[]
[null,"Kind 2","Vor- und Nachname des Kindes:",null,null,null,"Geb-Datum:",{"$f":"CONCATENATE(\"Alter am 31.12.\",$K$1)","v":"Alter am 31.12."}]
[null,null,null,null,null,null,null,{"$f":"IF($H$1=\"\",\"\",IF(G50=\"\",\"\",$H$1-J52))","v":""}]
[]
[null,"Kosten:","Zahlungsempfänger inkl. Adresse",null,null,"Rechnungs-betrag","davon Lebens-haltungskosten *","abziehbare Kosten",null,{"$f":"IF(G50=\"\",\"\",YEAR(G50))","v":""}]
[null,null,null,null,null,null,null,{"$f":"IF(F53=\"\",\"\",F53-G53)","v":""}]
[null,null,null,null,null,null,null,{"$f":"IF(F54=\"\",\"\",F54-G54)","v":""}]
[null,null,null,null,null,null,null,{"$f":"IF(F55=\"\",\"\",F55-G55)","v":""}]
[null,null,null,null,null,null,null,{"$f":"IF(F56=\"\",\"\",F56-G56)","v":""}]
[]
[null,"Entstandene Kosten in CHF:",null,{"$f":"IF(SUM(H53:H56)=0,\"\",SUM(H53:H56))","v":""},{"$f":"IF(D58=\"\",\"\",IF($H$1=\"\",$J$32,IF(G50=\"\",$J$33,IF(H50=14,$J$34,IF(H50>14,$J$35,\"\")))))","v":""},null,null,null,null,{"$f":"IF(H50<15,SUM(H53:H56),0)","v":0},{"$f":"IF(J58>$F$32,$F$32,J58)","v":0},{"$f":"IF(J58>$F$33,$F$33,J58)","v":0}]
[]
[null,"Weitere Informationen:"]
[]
[]
[null,"Abzugsfähige Drittbetreuungskosten Kanton in CHF (Code 761):",null,null,null,null,{"$f":"SUM(K44:K58)","v":0}]
[null,"Abzugsfähige Drittbetreuungskosten Bund in CHF (Code 760):",null,null,null,null,{"$f":"SUM(L44:L58)","v":0}]
[]
["*","Nicht abziehbare Lebenshaltungskosten sind zum Beispiel :"]
[null,"- Kosten für Verpflegung, Unterkunft, Bekleidung, Freizeitgestaltung. "]
[null,"- Schulgelder. Internatskosten (nur CHF 800 pro Jahr pro Kind sind pauschal abziehbar)."]
[null,"- 3/4 der Kosten für Haushilfe, welche sich explizit auch um die Kinder kümmert, sind nicht abziehbar."]
[null,"- 1/2 der Kosten für Aupair sind nicht abziehbar."]
[null,"Betreuungskosten, welche Hauptmahlzeiten enthalten, sind um die Ansätze gemäss Merkblatt N2/2007 zu kürzen:"]
[null,"siehe: Merkblatt N2/2007"]
[]
["Grundlagen: Art. 33 Abs. 3 DBG, § 33 Abs. 3 StG, Kreisschreiben Nr. 30 der ESTV, Merkblatt Abzug für Kinderdrittbetreuung"]